fUSD/lending_fUSD_20241017
["ID","MTS","AMOUNT","RATE_DAILY","PERIOD"]
[340379602,1729146641442,-330.89822,0.00014659,2]
[340379603,1729146641451,-330.89822,0.00014659,2]
[340379604,1729146641460,-196.306956,0.00014659,2]
[340379605,1729146641469,-196.306956,0.00014659,2]
[340379606,1729146641478,-151.0,0.00014659,2]
[340379607,1729146641488,-151.0,0.00014659,2]
[340379608,1729146641497,-981.706808,0.00014659,2]
[340379609,1729146641506,-151.0,0.00014659,2]
[340379610,1729146641515,-981.706808,0.00014659,2]
[340379611,1729146641526,-151.0,0.00014659,2]
[340379612,1729146641535,-292.494515,0.00014659,2]
[340379613,1729146641545,-5830.617823,0.00014659,2]
[340379614,1729146641555,-5830.617823,0.00014659,2]
[340379615,1729146641564,-606.10517761,0.0001466,2]
[340379617,1729146641574,-330.89822,0.0001466,2]
[340379619,1729146641583,-330.89822,0.0001466,2]
[340379621,1729146641593,-196.306956,0.0001466,2]
[340379623,1729146641603,-196.306956,0.0001466,2]
[340379625,1729146641612,-151.0,0.0001466,2]
[340379627,1729146641622,-151.0,0.0001466,2]
[340379628,1729146641631,-981.706808,0.0001466,2]
[340379629,1729146641640,-151.0,0.0001466,2]
[340379630,1729146641650,-981.706808,0.0001466,2]
[340379631,1729146641660,-151.0,0.0001466,2]
[340379632,1729146641671,-5830.617823,0.0001466,2]
[340379633,1729146641680,-5830.617823,0.0001466,2]
[340379634,1729146641690,-266.553092,0.0001466,2]
[340379635,1729146641700,-370.949434,0.0001466,2]
[340379636,1729146641709,-266.553092,0.0001466,2]
[340379637,1729146641718,-370.949434,0.0001466,2]
[340379638,1729146641951,-163.457636,0.0001466,2]
[340379639,1729146641962,-163.457636,0.0001466,2]
[340379640,1729146641972,-8692.96661086,0.0001466,2]
[340379641,1729146641985,-3450.54611814,0.0001466,2]
[340379642,1729146641997,-12143.512729,0.00014666,2]
[340379643,1729146642006,-16986.8015887,0.00014666,2]
[340379644,1729146642016,-152.580789,0.0001467,2]
[340379645,1729146642025,-151.0,0.0001467,2]
[340379646,1729146642034,-153.019943,0.0001467,2]
[340379647,1729146642044,-180.831508,0.0001467,2]
[340379648,1729146642053,-180.831508,0.0001467,2]
[340379649,1729146642062,-180.831508,0.0001467,2]
[340379650,1729146642072,-180.831508,0.0001467,2]
[340379651,1729146642081,-151.0,0.0001467,2]
[340379652,1729146642091,-151.0,0.0001467,2]
[340379653,1729146642100,-152.504705,0.0001467,2]
[340379654,1729146642110,-151.0,0.0001467,2]
[340379655,1729146642119,-187.896663,0.0001467,2]
[340379656,1729146642128,-151.0,0.0001467,2]
[340379657,1729146642137,-151.0,0.0001467,2]
[340379658,1729146642148,-151.0,0.0001467,2]
[340379659,1729146642158,-151.0,0.0001467,2]
[340379660,1729146642168,-151.0,0.0001467,2]
[340379661,1729146642177,-171.085769,0.0001467,2]
[340379662,1729146642186,-151.0,0.0001467,2]
[340379663,1729146642195,-218.206736,0.0001467,2]
[340379664,1729146642204,-151.0,0.0001467,2]
[340379665,1729146642214,-151.0,0.0001467,2]
[340379666,1729146642223,-151.0,0.0001467,2]
[340379667,1729146642233,-151.0,0.0001467,2]
[340379668,1729146642242,-228.834051,0.0001467,2]
[340379669,1729146642252,-151.0,0.0001467,2]
[340379670,1729146642261,-228.834051,0.0001467,2]
[340379671,1729146642271,-151.0,0.0001467,2]
[340379672,1729146642280,-151.0,0.0001467,2]
[340379673,1729146642289,-151.0,0.0001467,2]
[340379674,1729146642299,-777.496104,0.0001467,2]
[340379675,1729146642308,-299.319537,0.0001467,2]
[340379676,1729146642317,-777.496104,0.0001467,2]
[340379677,1729146642327,-500.62114451,0.00014673,2]
[340379678,1729146642336,-500.0,0.00014673,2]
[340379679,1729146642345,-343.54405658,0.00014673,2]
[340379680,1729146642355,-330.89822,0.00014676,2]
[340379681,1729146642364,-330.89822,0.00014676,2]
[340379682,1729146642373,-196.306956,0.00014676,2]
[340379683,1729146642382,-196.306956,0.00014676,2]
[340379684,1729146642391,-151.0,0.00014676,2]
[340379685,1729146642401,-151.0,0.00014676,2]
[340379686,1729146642411,-981.706808,0.00014676,2]
[340379687,1729146642424,-151.0,0.00014676,2]
[340379688,1729146642433,-981.706808,0.00014676,2]
[340379690,1729146642442,-151.0,0.00014676,2]
[340379691,1729146642452,-2006.34893647,0.00014677,2]
[340379692,1729146642461,-1000.0,0.00014678,2]
[340379693,1729146642471,-167.0,0.0001469,2]
[340379694,1729146642480,-266.553092,0.00014708,2]
[340379695,1729146642489,-370.949434,0.00014708,2]
[340379696,1729146642498,-266.553092,0.00014708,2]
[340379698,1729146642507,-370.949434,0.00014708,2]
[340379699,1729146642516,-163.457636,0.00014708,2]
[340379700,1729146642526,-163.457636,0.00014708,2]
[340379701,1729146642535,-10468.12487238,0.00014709,2]
[340379702,1729146642547,-639.92034794,0.00014709,2]
[340379703,1729146642562,-1035.46750868,0.00014709,2]
[340379704,1729146642572,-4338.12567936,0.0001471,2]
[340379705,1729146642636,-559.0,0.00013213,2]
[340379706,1729146642646,-219.84,0.0001471,2]
[340379707,1729146642657,-627.59413878,0.0001471,2]
[340379708,1729146642673,-1968.40098272,0.0001471,2]
[340379709,1729146642778,-628.6711612,0.0001471,2]
[340379712,1729146645572,-1675.976,0.00013569,2]
[340379713,1729146645582,-258.325872,0.00014638,2]
[340379714,1729146645592,-258.325872,0.00014638,2]
[340379715,1729146645601,-258.325872,0.00014639,2]
[340379716,1729146645611,-258.325872,0.00014649,2]
[340379717,1729146645623,-979.66386702,0.0001471,2]
[340379718,1729146645652,-1492.73216616,0.0001471,2]
[340379719,1729146645733,-258.325872,0.0001465,2]
[340379720,1729146645743,-1888.48473376,0.0001471,2]
[340379721,1729146645752,-16986.8015887,0.00014711,2]
[340379722,1729146645762,-6781.10954097,0.00014711,2]
[340380039,1729147056668,550.0,0.0001,2]
[340380041,1729147577940,161.26,0.00010959,2]
[340380049,1729147831666,-150.0,0.00011077,2]
[340380050,1729147831676,-551.13289398,0.00011309,2]
[340380051,1729147831694,-321.91710602,0.00011309,2]
[340380052,1729147831703,-600.0,0.00012,2]
[340380053,1729147831711,-178.60458202,0.00013117,2]
[340380054,1729147831800,-267.27541798,0.00013117,2]
[340380055,1729147831810,-2324.80244286,0.00013128,2]
[340380077,1729147837841,-868.71092388,0.00013128,2]
[340380078,1729147837866,-15.33385077,0.00013128,2]
[340380079,1729147837878,-250.0,0.00013128,2]
[340380080,1729147837887,-1153.23,0.00013158,2]
[340380081,1729147837897,-150.0,0.00013168,2]
[340380082,1729147837907,-250.0,0.0001318,2]
[340380083,1729147837916,-600.0,0.00013187,2]
[340380084,1729147837926,-200.0,0.00013187,2]
[340380085,1729147837935,-3819.98,0.00013187,2]
[340380086,1729147837945,-682.39,0.00013203,2]
[340380087,1729147837956,-2544.86,0.00013232,2]
[340380088,1729147837966,-499.88,0.00013247,2]
[340380089,1729147837975,-499.99,0.00013247,2]
[340380090,1729147837985,-363.06,0.00013319,2]
[340380091,1729147837994,-13947.95879955,0.0001333,2]
[340380092,1729147838005,-7422.42771787,0.0001333,2]
[340380093,1729147838160,-315.43310057,0.0001333,2]
[340380107,1729147839731,-18191.7,0.0001333,2]
[340380108,1729147839742,-329.5838525,0.0001333,2]
[340380109,1729147839850,-568.153188,0.0001333,2]
[340380110,1729147839964,-264.37412651,0.0001333,2]
[340380118,1729147843890,-543.803081,0.0001333,2]
[340380119,1729147843903,-33724.39095875,0.0001333,2]
[340380120,1729147843918,-347.20631582,0.0001333,2]
[340380128,1729147845998,-13527.49823694,0.0001333,2]
[340380129,1729147870447,14803.3893,0.00010977,2]
[340380130,1729148032894,1090.95569717,0.00027,60]
[340380134,1729148181423,300.0,0.00027,60]
[340380136,1729148385803,1048.0,0.00025,120]
[340380138,1729148702200,156.63,0.00010959,2]
[340380139,1729148882461,550.0,0.0001,2]
[340380142,1729149032015,-848.02,0.00011082,2]
[340380143,1729149032024,-600.0,0.00012,2]
[340380144,1729149032033,-20.50178818,0.00012702,2]
[340380145,1729149032044,-922.58821182,0.00012702,2]
[340380146,1729149032054,-7064.32941025,0.00012766,2]
[340380147,1729149032065,-813.76,0.00012766,2]
[340380148,1729149032076,-860.9892565,0.00012766,2]
[340380149,1729149032091,-597.15512323,0.00012766,2]
[340380150,1729149032167,-1310.64621002,0.00012766,2]
[340380151,1729149032179,-250.0,0.00012806,2]
[340380152,1729149032188,-27.71111426,0.00012806,2]
[340380153,1729149032200,-7843.77256198,0.00012806,2]
[340380154,1729149032210,-250.0,0.00012813,2]
[340380155,1729149032220,-150.0,0.00012866,2]
[340380156,1729149032229,-440.15,0.00012939,2]
[340380157,1729149032238,-200.0,0.00012974,2]
[340380158,1729149032247,-250.0,0.00012989,2]
[340380159,1729149032256,-353.14,0.00013,4]
[340380160,1729149032267,-247.38,0.00013042,2]
[340380161,1729149032276,-175.36,0.00013145,2]
[340380162,1729149032286,-300.09,0.00013237,2]
[340380163,1729149032295,-3238.10743802,0.00013271,2]
[340380164,1729149032306,-405.35,0.00013271,2]
[340380168,1729149038084,-2716.75953746,0.00013271,2]
[340380169,1729149038096,-714.64502452,0.00013271,2]
[340380170,1729149038105,-480.0,0.00013292,2]
[340380171,1729149038115,-204.0,0.000133,2]
[340380172,1729149038125,-58310.36684637,0.0001333,2]
[340380173,1729149038204,-529.76522685,0.0001333,2]
[340380178,1729149040083,-1686.59562738,0.0001333,2]
[340380184,1729149042943,-3118.82138009,0.0001333,2]
[340380185,1729149042984,-2559.56208418,0.0001333,2]
[340380186,1729149042996,-8463.08483566,0.0001333,2]
[340380187,1729149043125,-884.58936106,0.0001333,2]
[340380188,1729149043138,-6824.67082738,0.0001333,2]
[340380189,1729149044779,-134142.77896003,0.0001333,2]
[340380204,1729149046189,-13467.99357433,0.0001333,2]
[340380205,1729149046202,-36397.51948295,0.0001333,2]
[340380206,1729149046214,-4544.68843771,0.0001333,2]
[340380235,1729149344666,948.66,0.00010864,2]
[340380236,1729149707392,200.0,0.00027,60]
[340380237,1729149887408,901.22,0.0001049,2]
[340380238,1729149908217,507360.20859905,0.00011,2]
[340380240,1729150066929,176.0,0.00027,60]
[340380241,1729150080940,676528.23334101,0.00011,2]
[340380256,1729150232227,-200.0,0.00012397,2]
[340380257,1729150232236,-150.0,0.00012403,2]
[340380258,1729150232245,-15.18013912,0.00012404,2]
[340380259,1729150232357,-342.53986088,0.00012404,2]
[340380260,1729150232367,-156.12,0.00012404,2]
[340380261,1729150232377,-616.44,0.00012405,2]
[340380262,1729150232387,-250.0,0.00012408,2]
[340380263,1729150232397,-954.90013952,0.00012408,2]
[340380264,1729150232493,-3939.30986048,0.00012408,2]
[340380265,1729150232503,-738.06,0.00012416,2]
[340380266,1729150232513,-356.7,0.00012419,2]
[340380267,1729150232522,-161.46,0.00012421,2]
[340380268,1729150232532,-1104.43,0.00012421,2]
[340380269,1729150232547,-499.99,0.00012421,2]
[340380270,1729150232556,-201.31,0.00012422,2]
[340380271,1729150232565,-173.21552139,0.00012431,2]
[340380272,1729150232574,-1967.82,0.00012497,2]
[340380273,1729150232583,-1098.22,0.00012497,2]
[340380274,1729150232593,-250.0,0.00012531,2]
[340380275,1729150232602,-1083.05,0.00012531,2]
[340380276,1729150232612,-250.0,0.00012536,2]
[340380277,1729150232621,-2751.0,0.00012547,2]
[340380278,1729150232630,-18599.49,0.00012562,2]
[340380279,1729150232640,-173.21552139,0.00012564,2]
[340380280,1729150232649,-170.92,0.0001272,2]
[340380281,1729150232659,-1728.72,0.0001274,2]
[340380282,1729150232668,-901.22,0.00012754,2]
[340380283,1729150232679,-1000.0,0.00012757,2]
[340380284,1729150232688,-181.21,0.00012779,2]
[340380286,1729150232697,-167.0,0.00012813,2]
[340380288,1729150232706,-150.0,0.00012813,2]
[340380290,1729150232715,-408.22,0.00012819,2]
[340380292,1729150232724,-179.99,0.00012893,2]
[340380294,1729150232734,-2090.09592098,0.00012899,2]
[340380296,1729150232743,-3007.81966647,0.000129,2]
[340380298,1729150232752,-810.9839638,0.00013,2]
[340380300,1729150232761,-167.0,0.00013198,2]
[340380301,1729150232770,-75252.4488664,0.0001333,2]
[340380302,1729150232782,-3000.32951143,0.0001333,2]
[340380303,1729150232796,-925.1775,0.0001333,2]
[340380304,1729150232807,-11992.70186841,0.0001333,2]
[340380305,1729150238301,-242271.93008103,0.0001333,2]
[340380306,1729150238312,-1728.72,0.00013377,2]
[340380307,1729150238321,-152.41,0.00013385,2]
[340380308,1729150238332,-152.41,0.00013389,2]
[340380309,1729150238343,-152.41,0.00013392,2]
[340380310,1729150238353,-152.41,0.00013396,2]
[340380311,1729150238364,-152.41,0.000134,2]
[340380312,1729150238375,-152.41,0.00013404,2]
[340380313,1729150238386,-152.41,0.00013407,2]
[340380314,1729150238397,-152.41,0.00013411,2]
[340380315,1729150238407,-152.41,0.00013415,2]
[340380316,1729150238416,-152.41,0.00013419,2]
[340380317,1729150238426,-152.41,0.00013422,2]
[340380318,1729150238437,-3184.8,0.00013425,2]
[340380319,1729150238447,-152.41,0.00013426,2]
[340380320,1729150238457,-152.41,0.0001343,2]
[340380321,1729150238467,-152.41,0.00013433,2]
[340380322,1729150238476,-152.41,0.00013437,2]
[340380323,1729150238486,-152.41,0.00013441,2]
[340380324,1729150238495,-152.41,0.00013445,2]
[340380325,1729150238504,-152.41,0.00013448,2]
[340380326,1729150238514,-152.41,0.00013452,2]
[340380327,1729150238523,-1000.0,0.000135,2]
[340380328,1729150238532,-1000.0,0.000135,2]
[340380329,1729150238542,-150.125,0.00013561,2]
[340380330,1729150238551,-180.0,0.00013587,2]
[340380331,1729150238561,-161.46,0.00013663,2]
[340380332,1729150238570,-1016.9759,0.00013671,2]
[340380333,1729150238580,-2340.75,0.00013699,2]
[340380334,1729150238590,-200.0,0.00013699,2]
[340380335,1729150238599,-500.0,0.00013699,2]
[340380336,1729150238609,-2347.87,0.00013699,2]
[340380337,1729150238618,-935.0,0.00013817,2]
[340380338,1729150238627,-3356.0,0.00013817,2]
[340380339,1729150238637,-1908.0,0.00013817,2]
[340380340,1729150238646,-808.0,0.00013817,2]
[340380341,1729150238655,-1084.0,0.00013817,2]
[340380342,1729150238664,-1258.171,0.00013817,2]
[340380343,1729150238673,-452.354,0.00013817,2]
[340380344,1729150238683,-812.0,0.00013817,2]
[340380345,1729150238692,-5886.0,0.00013817,2]
[340380346,1729150238701,-150.0,0.00013817,2]
[340380347,1729150238711,-560.0,0.00013817,2]
[340380348,1729150238720,-245.46,0.00013875,2]
[340380349,1729150238730,-378.3943,0.00013915,2]
[340380350,1729150238739,-255.0,0.00013915,2]
[340380351,1729150238749,-356.7,0.00013971,2]
[340380352,1729150238759,-650.0,0.00014,2]
[340380353,1729150238770,-1728.72,0.00014014,2]
[340380354,1729150238779,-1000.0,0.000141,2]
[340380355,1729150238788,-172.9,0.00014121,2]
[340380356,1729150238798,-167.0,0.00014151,2]
[340380357,1729150238807,-6132.7219489,0.000142,2]
[340380358,1729150238817,-2500.0,0.00014201,2]
[340380359,1729150238826,-480.1651,0.00014201,2]
[340380360,1729150238835,-1000.0,0.00014201,2]
[340380361,1729150238846,-5673.4177,0.00014201,2]
[340380362,1729150238858,-159.34067906,0.00014201,2]
[340380363,1729150238867,-78312.3281,0.00014299,2]
[340380364,1729150238877,-119451.528296,0.000143,2]
[340380365,1729150238886,-172.36958813,0.000143,2]
[340380366,1729150238896,-68586.8321,0.00014301,2]
[340380367,1729150238905,-500.0,0.00014308,2]
[340380368,1729150238915,-500.0,0.00014308,2]
[340380369,1729150238925,-438.71239994,0.00014308,2]
[340380370,1729150238936,-500.0,0.00014309,2]
[340380371,1729150238945,-17324.0467,0.00014309,2]
[340380372,1729150238955,-2083.1802,0.00014309,2]
[340380373,1729150238965,-151.0,0.0001431,2]
[340380374,1729150238975,-151.0,0.0001431,2]
[340380375,1729150238985,-151.0,0.0001431,2]
[340380376,1729150238995,-151.0,0.0001431,2]
[340380377,1729150239004,-270.331795,0.0001431,2]
[340380378,1729150239015,-160.183835,0.0001431,2]
[340380379,1729150239025,-160.183835,0.0001431,2]
[340380380,1729150239034,-160.183835,0.0001431,2]
[340380381,1729150239044,-160.183835,0.0001431,2]
[340380382,1729150239054,-151.0,0.0001431,2]
[340380383,1729150239064,-151.0,0.0001431,2]
[340380384,1729150239073,-151.0,0.0001431,2]
[340380385,1729150239083,-151.0,0.0001431,2]
[340380386,1729150239092,-4081.432476,0.0001431,2]
[340380387,1729150239102,-151.0,0.0001431,2]
[340380388,1729150239112,-4081.432476,0.0001431,2]
[340380389,1729150239121,-219.156289,0.0001431,2]
[340380390,1729150239131,-4081.432476,0.0001431,2]
[340380391,1729150239141,-4081.432476,0.0001431,2]
[340380392,1729150239152,-151.0,0.0001431,2]
[340380393,1729150239162,-270.747052,0.0001431,2]
[340380394,1729150239172,-151.0,0.0001431,2]
[340380395,1729150239182,-151.0,0.0001431,2]
[340380396,1729150239191,-151.0,0.0001431,2]
[340380397,1729150239201,-151.0,0.0001431,2]
[340380398,1729150239210,-151.0,0.0001431,2]
[340380399,1729150239220,-151.0,0.0001431,2]
[340380400,1729150239230,-589.024084,0.0001431,2]
[340380401,1729150239239,-589.024084,0.0001431,2]
[340380402,1729150239249,-635.368676,0.0001431,2]
[340380403,1729150239258,-635.368676,0.0001431,2]
[340380404,1729150239267,-7500.0,0.0001431,2]
[340380405,1729150239277,-1000.0,0.0001431,2]
[340380406,1729150239286,-143847.40377846,0.0001431,2]
[340380407,1729150239299,-14449.0780689,0.0001431,2]
[340380419,1729150243165,-3759.17437585,0.00013817,2]
[340380422,1729150246392,-3669.5613,0.00013817,2]
[340380423,1729150246404,-4778.78352212,0.00013817,2]
[340380437,1729150333142,161.26,0.00010959,2]
[340380439,1729150707126,550.0,0.0001,2]
[340380440,1729151320830,150.0,0.00010922,2]
[340380441,1729151370195,13751.71320872,0.00027,60]
[340380445,1729151432310,-552.02866405,0.00011031,2]
[340380446,1729151432322,-298.06133595,0.00011031,2]
[340380447,1729151432331,-600.0,0.00012,2]
[340380448,1729151432341,-673.77,0.00012356,2]
[340380449,1729151432350,-250.0,0.00012803,2]
[340380450,1729151432359,-928.15,0.00012816,2]
[340380451,1729151432369,-326.57,0.00012853,2]
[340380452,1729151432379,-250.0,0.00012866,2]
[340380453,1729151432388,-200.0,0.00012897,2]
[340380454,1729151432397,-1000.0,0.00012948,2]
[340380455,1729151432407,-150.0,0.00013044,2]
[340380456,1729151432416,-551.72,0.00013046,2]
[340380457,1729151432425,-4384.52,0.00013046,2]
[340380458,1729151432434,-250.0,0.0001305,2]
[340380459,1729151432443,-5354.6487,0.00013258,2]
[340380460,1729151432452,-305.96,0.00013265,2]
[340380461,1729151432461,-499.99,0.00013265,2]
[340380462,1729151432471,-4648.35,0.00013265,2]
[340380463,1729151432480,-170.91,0.00013289,2]
[340380464,1729151432490,-850.09,0.00013295,2]
[340380465,1729151432499,-755.51,0.00013358,2]
[340380466,1729151432509,-167.0,0.00013562,2]
[340380467,1729151432519,-200.0,0.00013699,2]
[340380468,1729151432528,-673.77,0.000139,2]
[340380469,1729151432537,-650.0,0.00014,2]
[340380470,1729151432546,-2500.0,0.0001401,2]
[340380471,1729151432555,-180.0,0.00014018,2]
[340380472,1729151432564,-755.51,0.00014026,2]
[340380473,1729151432573,-161.60204481,0.00014048,2]
[340380474,1729151432583,-1008.08375006,0.000141,2]
[340380475,1729151432594,-81.57644994,0.000141,2]
[340380476,1729151432605,-784.27752062,0.00014109,2]
[340380477,1729151432617,-128.32191914,0.00014109,2]
[340380478,1729151432642,-150.0,0.00014109,2]
[340380479,1729151432653,-358.03439459,0.0001411,2]
[340380480,1729151432664,-9688.92670541,0.0001411,2]
[340380481,1729151432673,-362.1473,0.0001411,2]
[340380482,1729151432685,-1654.3905,0.0001411,2]
[340380483,1729151432696,-254.492,0.0001411,2]
[340380484,1729151432706,-63166.32036459,0.0001411,2]
[340380485,1729151432717,-948.72,0.0001411,2]
[340380486,1729151432737,-568.23158854,0.0001411,2]
[340380554,1729151440414,-8353.6744191,0.0001411,2]
[340380555,1729151440480,-582.272534,0.0001411,2]
[340380556,1729151440492,-1973.61,0.0001411,2]
[340380557,1729151442148,150.0,0.00010924,2]
[340380561,1729151443403,-336.81228,0.0001411,2]
[340380562,1729151443573,-6853.59798863,0.0001411,2]
[340380569,1729151446350,-16739.17611555,0.0001411,2]
[340380570,1729151446631,-52786.39,0.0001411,2]
[340380572,1729151894912,21019.38939172,0.00027,60]
[340380573,1729151916370,156.63,0.00010959,2]
[340380576,1729152472440,150.0,0.00010959,2]
[340380624,1729152533945,550.0,0.0001,2]
[340380625,1729152593788,150.0,0.00010961,2]
[340380626,1729152631452,-803.57,0.0001108,2]
[340380627,1729152631463,-500.0,0.00011215,2]
[340380628,1729152631473,-500.0,0.00011215,2]
[340380629,1729152631482,-500.0,0.00011215,2]
[340380630,1729152631491,-500.0,0.00011215,2]
[340380631,1729152631500,-3291.19143319,0.00011215,2]
[340380632,1729152631509,-600.0,0.00012,2]
[340380633,1729152631518,-250.0,0.00012821,2]
[340380634,1729152631527,-404.26,0.00012858,2]
[340380635,1729152631536,-1000.0,0.00012909,2]
[340380636,1729152631548,-250.0,0.00012924,2]
[340380637,1729152631557,-170.91,0.00012947,2]
[340380638,1729152631566,-250.0,0.0001298,2]
[340380639,1729152631575,-44.11920031,0.00013014,2]
[340380640,1729152631587,-594.37079969,0.00013014,2]
[340380641,1729152631596,-249.73,0.00013094,2]
[340380642,1729152631605,-71.19627977,0.00013164,2]
[340380643,1729152631617,-90.26372023,0.00013164,2]
[340380644,1729152631626,-803.57,0.00013344,2]
[340380645,1729152631635,-6.16627977,0.00013399,2]
[340380646,1729152631647,-477.88372023,0.00013399,2]
[340380647,1729152631656,-167.0,0.0001354,2]
[340380648,1729152631666,-200.0,0.00013699,2]
[340380649,1729152631675,-68.38014603,0.000138,5]
[340380650,1729152631687,-431.61985397,0.000138,5]
[340380651,1729152631696,-4674.97141051,0.0001389,2]
[340380666,1729152637625,-1940.6102756,0.0001389,2]
[340380667,1729152637636,-9122.78937426,0.00013899,2]
[340380668,1729152637730,-9471.76382574,0.00013899,2]
[340380669,1729152637740,-22639.4432,0.00013899,2]
[340380670,1729152637749,-1000.0,0.000139,5]
[340380671,1729152637759,-161.60204481,0.000139,2]
[340380672,1729152637768,-342.66365258,0.000139,2]
[340380673,1729152638031,-342.66365256,0.0001395,2]
[340380674,1729152638042,-977.0187,0.00013989,2]
[340380675,1729152638052,-1429.9447,0.00013989,2]
[340380676,1729152638062,-16831.50802769,0.00013989,2]
[340380684,1729152639618,-22951.87630005,0.00013989,2]
[340380723,1729152642448,-5244.53520037,0.00013989,2]
[340380724,1729152642556,-6634.11931277,0.00013989,2]
[340380725,1729152642715,-2003.35467875,0.00013989,2]
[340380815,1729152816332,150.0,0.00015,15]
[340380816,1729153018576,150.0,0.00010999,2]
[340380817,1729153062590,161.26,0.00010959,2]
[340380818,1729153245567,150.0,0.00015,15]
[340380819,1729153443385,150.0,0.00010996,2]
[340380823,1729153486035,760.03,0.0001094,2]
[340380824,1729153495644,201.2510585,0.00015,15]
[340380829,1729153831656,-250.0,0.00012705,2]
[340380831,1729153831666,-419.26,0.0001271,2]
[340380833,1729153831675,-250.0,0.00012715,2]
[340380835,1729153831684,-538.56,0.00012752,2]
[340380837,1729153831693,-199.78,0.00012803,2]
[340380838,1729153831702,-320.23426653,0.00012803,2]
[340380839,1729153831714,-273.92457992,0.00012803,2]
[340380840,1729153831723,-559.87335324,0.00012869,2]
[340380841,1729153831770,-1284.72544455,0.00012869,2]
[340380842,1729153831782,-643.71419954,0.00012869,2]
[340380843,1729153831829,-2999.0,0.00012869,2]
[340380857,1729153837955,-424.32055357,0.00012869,2]
[340380891,1729153840161,-1316.3064491,0.00012869,2]
[340380892,1729153840172,-161.46,0.0001287,2]
[340380893,1729153840181,-261.25,0.00012933,2]
[340380894,1729153840190,-300.0,0.00012992,2]
[340380895,1729153840199,-32.65633404,0.00012994,2]
[340380907,1729153845853,-967.34366596,0.00012994,2]
[340380908,1729153845862,-167.0,0.00013168,2]
[340380909,1729153845872,-760.03,0.00013204,2]
[340380910,1729153845881,-167.0,0.00013308,2]
[340380911,1729153845891,-419.26,0.00013345,2]
[340380912,1729153845900,-163.8634106,0.00013669,2]
[340380913,1729153845910,-200.0,0.00013699,2]
[340380914,1729153845919,-150.0,0.0001371,2]
[340380915,1729153845929,-500.0,0.00013711,2]
[340380916,1729153845938,-500.0,0.00013711,2]
[340380917,1729153845949,-500.0,0.00013711,2]
[340380918,1729153845959,-500.0,0.00013711,2]
[340380919,1729153845969,-500.0,0.00013711,2]
[340380920,1729153845978,-500.0,0.00013711,2]
[340380921,1729153845987,-500.0,0.00013711,2]
[340380922,1729153845997,-500.0,0.00013711,2]
[340380923,1729153846006,-500.0,0.00013711,2]
[340380924,1729153846015,-500.0,0.00013711,2]
[340380925,1729153846025,-500.0,0.00013711,2]
[340380926,1729153846034,-500.0,0.00013711,2]
[340380927,1729153846043,-500.0,0.00013711,2]
[340380928,1729153846052,-500.0,0.00013711,2]
[340380929,1729153846061,-500.0,0.00013711,2]
[340380930,1729153846071,-500.0,0.00013711,2]
[340380931,1729153846080,-500.0,0.00013711,2]
[340380932,1729153846089,-500.0,0.00013711,2]
[340380933,1729153846098,-500.0,0.00013711,2]
[340380934,1729153846107,-500.0,0.00013711,2]
[340380935,1729153846116,-500.0,0.00013711,2]
[340380936,1729153846125,-500.0,0.00013711,2]
[340380937,1729153846134,-500.0,0.00013711,2]
[340380938,1729153846143,-429.64,0.00013711,2]
[340380939,1729153846153,-497.43,0.00013711,2]